[Event "Live Chess"]
[Site "Chess.com"]
[Date "2023.05.21"]
[Round "-"]
[White "wadsy27"]
[Black "AbilifyXL"]
[Result "1-0"]
[WhiteElo "2568"]
[BlackElo "1950"]
[TimeControl "300"]
[EndTime "1:33:29 PDT"]
[Termination "wadsy27 won by resignation"]

1. c4 {[%clk 0:04:57.9]} 1... c6 {[%clk 0:04:57.8]} 2. g3 {[%clk 0:04:56]} 2...
d5 {[%clk 0:04:57.7]} 3. Bg2 {[%clk 0:04:55.5]} 3... Nf6 {[%clk 0:04:57.1]} 4.
Nf3 {[%clk 0:04:55]} 4... e6 {[%clk 0:04:55.5]} 5. O-O {[%clk 0:04:53.8]} 5...
Be7 {[%clk 0:04:55]} 6. b3 {[%clk 0:04:53.4]} 6... O-O {[%clk 0:04:53.8]} 7. Bb2
{[%clk 0:04:53.1]} 7... Nbd7 {[%clk 0:04:52.7]} 8. d3 {[%clk 0:04:52.7]} 8...
Re8 {[%clk 0:04:52.1]} 9. Nc3 {[%clk 0:04:48.9]} 9... b6 {[%clk 0:04:51.5]} 10.
e4 {[%clk 0:04:47.8]} 10... dxe4 {[%clk 0:04:49.9]} 11. dxe4 {[%clk 0:04:45.3]}
11... Bb7 {[%clk 0:04:49.1]} 12. e5 {[%clk 0:04:42.6]} 12... Nh5 {[%clk
0:04:43.2]} 13. Ne4 {[%clk 0:04:31.1]} 13... g6 {[%clk 0:04:41.7]} 14. Qd2
{[%clk 0:04:27.8]} 14... c5 {[%clk 0:04:32.1]} 15. Rfe1 {[%clk 0:04:22.2]} 15...
Qc7 {[%clk 0:04:22]} 16. g4 {[%clk 0:04:12]} 16... Ng7 {[%clk 0:04:20.3]} 17.
Qh6 {[%clk 0:04:10.9]} 17... Bxe4 {[%clk 0:04:15.3]} 18. Rxe4 {[%clk 0:04:05.7]}
18... Nf8 {[%clk 0:04:07.1]} 19. Bc1 {[%clk 0:03:42.8]} 19... Rad8 {[%clk
0:04:00.9]} 20. Bg5 {[%clk 0:03:41.6]} 20... Rd3 {[%clk 0:03:23.8]} 21. Bf6
{[%clk 0:03:38.5]} 1-0

[Event "Live Chess"]
[Site "Chess.com"]
[Date "2023.05.21"]
[Round "-"]
[White "JanMur7"]
[Black "chessfiction"]
[Result "1-0"]
[WhiteElo "1971"]
[BlackElo "2328"]
[TimeControl "300"]
[EndTime "1:33:37 PDT"]
[Termination "JanMur7 won by checkmate"]

1. e4 {[%clk 0:04:58.5]} 1... d5 {[%clk 0:04:58.8]} 2. exd5 {[%clk 0:04:56.4]}
2... c6 {[%clk 0:04:58.7]} 3. dxc6 {[%clk 0:04:49.7]} 3... e5 {[%clk 0:04:57.9]}
4. Nc3 {[%clk 0:04:45.8]} 4... Bc5 {[%clk 0:04:54]} 5. Nf3 {[%clk 0:04:43]} 5...
Qb6 {[%clk 0:04:52.2]} 6. d4 {[%clk 0:04:26.7]} 6... exd4 {[%clk 0:04:50.9]} 7.
Ne4 {[%clk 0:04:25.5]} 7... Nxc6 {[%clk 0:04:48.2]} 8. Nxc5 {[%clk 0:04:23.2]}
8... Qxc5 {[%clk 0:04:48.1]} 9. Bd3 {[%clk 0:04:20.7]} 9... Bg4 {[%clk
0:04:46.8]} 10. h3 {[%clk 0:04:18.2]} 10... Bxf3 {[%clk 0:04:44.3]} 11. Qxf3
{[%clk 0:04:16.1]} 11... O-O-O {[%clk 0:04:42.7]} 12. O-O {[%clk 0:03:59.1]}
12... Nge7 {[%clk 0:04:40.7]} 13. Bf4 {[%clk 0:03:56.5]} 13... h6 {[%clk
0:04:36.9]} 14. Rfe1 {[%clk 0:03:46.7]} 14... g5 {[%clk 0:04:35.3]} 15. Bh2
{[%clk 0:03:45.5]} 15... f5 {[%clk 0:04:33.6]} 16. Re6 {[%clk 0:03:30]} 16...
Rhg8 {[%clk 0:04:28.2]} 17. Rae1 {[%clk 0:03:22.1]} 17... g4 {[%clk 0:04:26.4]}
18. Qf4 {[%clk 0:03:13.9]} 18... Rd7 {[%clk 0:04:09.2]} 19. h4 {[%clk
0:02:47.3]} 19... Rf8 {[%clk 0:03:57]} 20. Qxh6 {[%clk 0:02:25.2]} 20... Rg8
{[%clk 0:03:19.8]} 21. Bd6 {[%clk 0:02:13.1]} 21... Qd5 {[%clk 0:03:02.5]} 22.
Bxe7 {[%clk 0:02:07.6]} 22... g3 {[%clk 0:02:58.7]} 23. f3 {[%clk 0:01:51.4]}
23... f4 {[%clk 0:02:46.6]} 24. Bg5 {[%clk 0:01:41.2]} 24... Nd8 {[%clk
0:02:38.8]} 25. Re8 {[%clk 0:01:30]} 25... Rxe8 {[%clk 0:02:33.2]} 26. Rxe8
{[%clk 0:01:29.9]} 26... Qa5 {[%clk 0:02:26]} 27. Bxd8 {[%clk 0:01:21.5]} 27...
Rxd8 {[%clk 0:02:18.2]} 28. Qe6+ {[%clk 0:01:15.5]} 28... Kc7 {[%clk 0:02:16.7]}
29. Qe5+ {[%clk 0:01:04.6]} 29... Qxe5 {[%clk 0:02:14.4]} 30. Rxe5 {[%clk
0:01:04.5]} 30... Kd6 {[%clk 0:02:12]} 31. Re4 {[%clk 0:01:02.6]} 31... Kc5
{[%clk 0:02:08.8]} 32. Rxf4 {[%clk 0:00:59.7]} 32... Re8 {[%clk 0:02:08.2]} 33.
Be4 {[%clk 0:00:54.2]} 33... d3 {[%clk 0:02:06.6]} 34. Bxd3 {[%clk 0:00:43.3]}
34... Re1+ {[%clk 0:02:04.8]} 35. Bf1 {[%clk 0:00:42.8]} 35... Rc1 {[%clk
0:02:03.2]} 36. h5 {[%clk 0:00:33.3]} 36... Re1 {[%clk 0:02:03.1]} 37. h6 {[%clk
0:00:28.8]} 37... Re7 {[%clk 0:02:01.4]} 38. Rh4 {[%clk 0:00:25]} 38... Rh7
{[%clk 0:02:00.1]} 39. Bd3 {[%clk 0:00:23.8]} 39... Rh8 {[%clk 0:01:59.5]} 40.
h7 {[%clk 0:00:22.7]} 40... b5 {[%clk 0:01:58.7]} 41. Rg4 {[%clk 0:00:21.4]}
41... Re8 {[%clk 0:01:57.7]} 42. Re4 {[%clk 0:00:16.8]} 42... Rh8 {[%clk
0:01:56.1]} 43. Re7 {[%clk 0:00:15.7]} 43... Kd4 {[%clk 0:01:53.1]} 44. Kf1
{[%clk 0:00:14.8]} 44... b4 {[%clk 0:01:51.6]} 45. Rg7 {[%clk 0:00:14]} 45... a5
{[%clk 0:01:48.7]} 46. Rg8 {[%clk 0:00:13.1]} 46... Rxh7 {[%clk 0:01:48.3]} 47.
Bxh7 {[%clk 0:00:11.5]} 47... Kc5 {[%clk 0:01:47.9]} 48. Bd3 {[%clk 0:00:10.6]}
48... a4 {[%clk 0:01:47.1]} 49. Rxg3 {[%clk 0:00:10.1]} 49... a3 {[%clk
0:01:46.3]} 50. bxa3 {[%clk 0:00:09.2]} 50... b3 {[%clk 0:01:46]} 51. Rg4 {[%clk
0:00:09.1]} 51... b2 {[%clk 0:01:45.6]} 52. Rb4 {[%clk 0:00:07.8]} 52... b1=Q+
{[%clk 0:01:45]} 53. Rxb1 {[%clk 0:00:07.7]} 53... Kd4 {[%clk 0:01:44.3]} 54.
Rb3 {[%clk 0:00:07.3]} 54... Kc5 {[%clk 0:01:43.5]} 55. a4 {[%clk 0:00:07.2]}
55... Kd4 {[%clk 0:01:43.3]} 56. a5 {[%clk 0:00:07.1]} 56... Ke3 {[%clk
0:01:43.2]} 57. a6 {[%clk 0:00:06.9]} 57... Kd2 {[%clk 0:01:43.1]} 58. a7 {[%clk
0:00:06.6]} 58... Ke3 {[%clk 0:01:43]} 59. a8=Q {[%clk 0:00:06.3]} 59... Kd2
{[%clk 0:01:42.9]} 60. Qe4 {[%clk 0:00:05.1]} 60... Kc1 {[%clk 0:01:42.8]} 61.
Qe1# {[%clk 0:00:04.4]} 1-0

[Event "Live Chess"]
[Site "Chess.com"]
[Date "2023.05.21"]
[Round "-"]
[White "Tushinskiy"]
[Black "BillythekidFellowes"]
[Result "0-1"]
[WhiteElo "2178"]
[BlackElo "2055"]
[TimeControl "300"]
[EndTime "1:33:42 PDT"]
[Termination "BillythekidFellowes won by resignation"]

1. d4 {[%clk 0:04:57.9]} 1... e5 {[%clk 0:04:59]} 2. c3 {[%clk 0:04:57.8]} 2...
exd4 {[%clk 0:04:58.9]} 3. Nf3 {[%clk 0:04:57.7]} 3... dxc3 {[%clk 0:04:57.8]}
4. Nxc3 {[%clk 0:04:56.7]} 4... Nf6 {[%clk 0:04:57.2]} 5. Bf4 {[%clk 0:04:56.1]}
5... Bb4 {[%clk 0:04:56]} 6. e3 {[%clk 0:04:55.2]} 6... d5 {[%clk 0:04:55.8]} 7.
Bd3 {[%clk 0:04:51.8]} 7... c6 {[%clk 0:04:55.2]} 8. O-O {[%clk 0:04:50.6]} 8...
Nbd7 {[%clk 0:04:54.7]} 9. a3 {[%clk 0:04:46.9]} 9... Bxc3 {[%clk 0:04:53.6]}
10. bxc3 {[%clk 0:04:46.8]} 10... O-O {[%clk 0:04:53.5]} 11. Qc2 {[%clk
0:04:45.2]} 11... g6 {[%clk 0:04:51.1]} 12. Rad1 {[%clk 0:04:43.3]} 12... Nh5
{[%clk 0:04:50.3]} 13. Bg5 {[%clk 0:04:40.7]} 13... Qc7 {[%clk 0:04:49.9]} 14.
c4 {[%clk 0:04:35.2]} 14... dxc4 {[%clk 0:04:48.4]} 15. Bxc4 {[%clk 0:04:33.9]}
15... Ne5 {[%clk 0:04:47.8]} 16. Ba2 {[%clk 0:04:31.7]} 16... Nxf3+ {[%clk
0:04:47.3]} 17. gxf3 {[%clk 0:04:31.1]} 17... Bh3 {[%clk 0:04:46.6]} 18. Rfe1
{[%clk 0:04:29.2]} 18... Qa5 {[%clk 0:04:46.1]} 19. Bh4 {[%clk 0:04:26]} 19...
Qxa3 {[%clk 0:04:38]} 20. Bg3 {[%clk 0:04:23.2]} 20... Qa5 {[%clk 0:04:25]} 21.
Rd2 {[%clk 0:04:15.1]} 21... Rad8 {[%clk 0:04:23.1]} 22. Red1 {[%clk 0:04:13.7]}
22... Rxd2 {[%clk 0:04:22.2]} 23. Rxd2 {[%clk 0:04:13.6]} 23... Qa6 {[%clk
0:04:18.5]} 24. Bc4 {[%clk 0:04:09.3]} 24... Qa1+ {[%clk 0:04:17.3]} 25. Rd1
{[%clk 0:04:08]} 25... Qf6 {[%clk 0:04:16.5]} 26. Qe2 {[%clk 0:04:03.4]} 26...
Ng7 {[%clk 0:04:11.2]} 27. e4 {[%clk 0:03:59.3]} 27... h5 {[%clk 0:04:08.5]} 28.
Qe3 {[%clk 0:03:54.5]} 28... h4 {[%clk 0:04:06.7]} 29. Bd6 {[%clk 0:03:52.9]}
29... Rd8 {[%clk 0:04:03.7]} 30. e5 {[%clk 0:03:51.8]} 30... Qf5 {[%clk
0:04:01.4]} 31. Bd3 {[%clk 0:03:42.9]} 31... Qh5 {[%clk 0:03:56.8]} 32. Kh1
{[%clk 0:03:38.1]} 32... Nf5 {[%clk 0:03:54]} 33. Bxf5 {[%clk 0:03:24.3]} 33...
Qxf5 {[%clk 0:03:53.9]} 34. f4 {[%clk 0:03:20.5]} 34... Bg2+ {[%clk 0:03:49.3]}
35. Kxg2 {[%clk 0:03:12.2]} 35... Qg4+ {[%clk 0:03:48]} 36. Kh1 {[%clk 0:03:10]}
36... Qxd1+ {[%clk 0:03:46.9]} 37. Kg2 {[%clk 0:03:09.5]} 37... Qg4+ {[%clk
0:03:46.6]} 38. Kh1 {[%clk 0:03:08.7]} 38... h3 {[%clk 0:03:46.1]} 0-1

[Event "Live Chess"]
[Site "Chess.com"]
[Date "2023.05.21"]
[Round "-"]
[White "MaximKris"]
[Black "domrobson"]
[Result "1-0"]
[WhiteElo "1813"]
[BlackElo "1751"]
[TimeControl "300"]
[EndTime "1:33:45 PDT"]
[Termination "MaximKris won by resignation"]

1. e4 {[%clk 0:04:54.8]} 1... e5 {[%clk 0:04:58.8]} 2. Nf3 {[%clk 0:04:53.9]}
2... Nc6 {[%clk 0:04:57.2]} 3. Nc3 {[%clk 0:04:51.9]} 3... Nf6 {[%clk
0:04:56.3]} 4. Bc4 {[%clk 0:04:51.1]} 4... Nxe4 {[%clk 0:04:54.1]} 5. Nxe4
{[%clk 0:04:49.4]} 5... d5 {[%clk 0:04:53.2]} 6. Bd3 {[%clk 0:04:49.1]} 6...
dxe4 {[%clk 0:04:52.3]} 7. Bxe4 {[%clk 0:04:49]} 7... Bd6 {[%clk 0:04:51]} 8.
O-O {[%clk 0:04:48.4]} 8... O-O {[%clk 0:04:50.1]} 9. d3 {[%clk 0:04:48]} 9...
Bd7 {[%clk 0:04:49.5]} 10. Be3 {[%clk 0:04:47.5]} 10... f5 {[%clk 0:04:47]} 11.
Bd5+ {[%clk 0:04:46.9]} 11... Kh8 {[%clk 0:04:45.7]} 12. Re1 {[%clk 0:04:46.4]}
12... f4 {[%clk 0:04:43.1]} 13. Bd2 {[%clk 0:04:45.7]} 13... Qf6 {[%clk
0:04:34.6]} 14. Bc3 {[%clk 0:04:45.3]} 14... Rae8 {[%clk 0:04:25.3]} 15. Qd2
{[%clk 0:04:43.3]} 15... Bg4 {[%clk 0:04:19.2]} 16. h3 {[%clk 0:04:32.9]} 16...
Bxf3 {[%clk 0:04:14.1]} 17. Bxf3 {[%clk 0:04:32.8]} 17... Re7 {[%clk 0:04:05.8]}
18. Bxc6 {[%clk 0:04:27.8]} 18... bxc6 {[%clk 0:04:04]} 19. d4 {[%clk
0:04:23.3]} 19... e4 {[%clk 0:03:59.8]} 20. d5 {[%clk 0:03:52.7]} 20... e3
{[%clk 0:03:46.2]} 21. Bxf6 {[%clk 0:03:48.6]} 21... exd2 {[%clk 0:03:40.3]} 22.
Rxe7 {[%clk 0:03:48.2]} 22... Bxe7 {[%clk 0:03:32]} 23. Bxe7 {[%clk 0:03:48.1]}
23... Re8 {[%clk 0:03:31.4]} 24. Bb4 {[%clk 0:03:46.9]} 24... cxd5 {[%clk
0:03:24.6]} 25. Bxd2 {[%clk 0:03:41.1]} 25... g5 {[%clk 0:03:21.4]} 26. Re1
{[%clk 0:03:41]} 26... Re4 {[%clk 0:03:15.5]} 27. Rxe4 {[%clk 0:03:39.8]} 27...
dxe4 {[%clk 0:03:14.1]} 28. Bc3+ {[%clk 0:03:39.7]} 28... Kg8 {[%clk 0:03:12.8]}
29. Kf1 {[%clk 0:03:39.6]} 29... Kf7 {[%clk 0:03:12]} 30. Ke2 {[%clk 0:03:39.5]}
30... Ke6 {[%clk 0:03:11.2]} 31. f3 {[%clk 0:03:39.4]} 31... e3 {[%clk
0:03:08.9]} 32. g3 {[%clk 0:03:39]} 32... h6 {[%clk 0:03:06.9]} 33. gxf4 {[%clk
0:03:38.4]} 33... gxf4 {[%clk 0:03:05.3]} 34. Bd4 {[%clk 0:03:38.1]} 34... a6
{[%clk 0:03:03.4]} 35. Ba7 {[%clk 0:03:38]} 35... c6 {[%clk 0:03:01.6]} 36. Bb8
{[%clk 0:03:37.6]} 36... Kf5 {[%clk 0:03:00]} 37. c4 {[%clk 0:03:36.1]} 37... h5
{[%clk 0:02:58.6]} 38. c5 {[%clk 0:03:36]} 38... Kg5 {[%clk 0:02:56.5]} 39. h4+
{[%clk 0:03:34.4]} 39... Kf5 {[%clk 0:02:55.6]} 40. b4 {[%clk 0:03:33.3]} 1-0

[Event "Live Chess"]
[Site "Chess.com"]
[Date "2023.05.21"]
[Round "-"]
[White "horsechessnut"]
[Black "peter-785"]
[Result "1-0"]
[WhiteElo "1465"]
[BlackElo "1192"]
[TimeControl "300"]
[EndTime "1:33:50 PDT"]
[Termination "horsechessnut won on time"]

1. d4 {[%clk 0:04:58.5]} 1... d5 {[%clk 0:04:58.6]} 2. Bf4 {[%clk 0:04:56.7]}
2... c6 {[%clk 0:04:56.3]} 3. Nf3 {[%clk 0:04:55.8]} 3... e6 {[%clk 0:04:55.8]}
4. e3 {[%clk 0:04:55.2]} 4... Nf6 {[%clk 0:04:55.2]} 5. Nbd2 {[%clk 0:04:54.5]}
5... Bd6 {[%clk 0:04:45.2]} 6. h3 {[%clk 0:04:53.7]} 6... Bxf4 {[%clk
0:04:43.7]} 7. exf4 {[%clk 0:04:52.1]} 7... Qc7 {[%clk 0:04:33.1]} 8. Ne5 {[%clk
0:04:51]} 8... Nbd7 {[%clk 0:04:30.4]} 9. Ndf3 {[%clk 0:04:49.9]} 9... Nxe5
{[%clk 0:04:27.3]} 10. Nxe5 {[%clk 0:04:48.5]} 10... Nd7 {[%clk 0:04:25.8]} 11.
Qh5 {[%clk 0:04:45.5]} 11... Nxe5 {[%clk 0:04:21.2]} 12. fxe5 {[%clk 0:04:44]}
12... Qa5+ {[%clk 0:04:06.5]} 13. c3 {[%clk 0:04:41.8]} 13... b5 {[%clk
0:03:52.5]} 14. Be2 {[%clk 0:04:39.9]} 14... b4 {[%clk 0:03:44.1]} 15. c4 {[%clk
0:04:34.7]} 15... b3+ {[%clk 0:03:38.4]} 16. Kf1 {[%clk 0:04:31.6]} 16... bxa2
{[%clk 0:03:36.9]} 17. Kg1 {[%clk 0:04:29.9]} 17... Ba6 {[%clk 0:03:20.7]} 18.
Bg4 {[%clk 0:04:21.7]} 18... g6 {[%clk 0:03:05.1]} 19. Qh6 {[%clk 0:04:18.1]}
19... O-O-O {[%clk 0:02:41.4]} 20. Kh2 {[%clk 0:04:16.8]} 20... Bxc4 {[%clk
0:02:35.6]} 21. Rhc1 {[%clk 0:04:13.4]} 21... Qb4 {[%clk 0:02:17.1]} 22. Qe3
{[%clk 0:04:10.8]} 22... Kd7 {[%clk 0:01:55.2]} 23. Qc3 {[%clk 0:04:02.1]} 23...
Qb3 {[%clk 0:01:29.9]} 24. Qxb3 {[%clk 0:03:49.5]} 24... Bxb3 {[%clk 0:01:28.2]}
25. Rc3 {[%clk 0:03:48.6]} 25... Bc4 {[%clk 0:01:25]} 26. Bd1 {[%clk 0:03:46.7]}
26... Rb8 {[%clk 0:01:21.4]} 27. b3 {[%clk 0:03:45.8]} 27... Bb5 {[%clk
0:01:08.2]} 28. Rxa2 {[%clk 0:03:44.4]} 28... a6 {[%clk 0:01:04]} 29. Rf3 {[%clk
0:03:34.1]} 29... Ke7 {[%clk 0:01:01.9]} 30. Rc3 {[%clk 0:03:32]} 30... Rhc8
{[%clk 0:01:00.1]} 31. Rac2 {[%clk 0:03:21.4]} 31... Rb6 {[%clk 0:00:57.7]} 32.
f4 {[%clk 0:03:16.2]} 32... h5 {[%clk 0:00:55.4]} 33. Be2 {[%clk 0:03:02.1]}
33... Kd7 {[%clk 0:00:54.1]} 34. Bxb5 {[%clk 0:02:59.7]} 34... axb5 {[%clk
0:00:50.5]} 35. Rg3 {[%clk 0:02:55.8]} 35... Ke7 {[%clk 0:00:46.4]} 36. Rf2
{[%clk 0:02:50.2]} 36... Rf8 {[%clk 0:00:43.8]} 37. Rg5 {[%clk 0:02:46.5]} 37...
Ra6 {[%clk 0:00:41.7]} 38. g4 {[%clk 0:02:42.6]} 38... hxg4 {[%clk 0:00:37.5]}
39. hxg4 {[%clk 0:02:37.3]} 39... Rh8+ {[%clk 0:00:35]} 40. Kg3 {[%clk
0:02:36.4]} 40... Ra3 {[%clk 0:00:32.7]} 41. Rf3 {[%clk 0:02:35.7]} 41... Ra1
{[%clk 0:00:29.6]} 42. Kg2 {[%clk 0:02:26.1]} 42... Rd1 {[%clk 0:00:28.8]} 43.
Rh3 {[%clk 0:02:17.6]} 43... Rxh3 {[%clk 0:00:24.9]} 44. Kxh3 {[%clk 0:02:16.9]}
44... Rxd4 {[%clk 0:00:24.4]} 45. f5 {[%clk 0:02:14.7]} 45... exf5 {[%clk
0:00:17.2]} 46. gxf5 {[%clk 0:02:12.9]} 46... gxf5 {[%clk 0:00:16.4]} 47. Rxf5
{[%clk 0:02:11.7]} 47... Re4 {[%clk 0:00:14.9]} 48. Rf6 {[%clk 0:01:59.4]} 48...
c5 {[%clk 0:00:13.3]} 49. Rc6 {[%clk 0:01:54.2]} 49... c4 {[%clk 0:00:11.9]} 50.
bxc4 {[%clk 0:01:52.5]} 50... Rxc4 {[%clk 0:00:09.8]} 51. Rb6 {[%clk 0:01:49.9]}
51... b4 {[%clk 0:00:08.5]} 52. Rd6 {[%clk 0:01:46.7]} 52... d4 {[%clk 0:00:06]}
53. Ra6 {[%clk 0:01:43.3]} 53... b3 {[%clk 0:00:05.2]} 54. Ra7+ {[%clk
0:01:42.2]} 54... Ke6 {[%clk 0:00:03.4]} 55. Ra5 {[%clk 0:01:40.7]} 55... Rc3+
{[%clk 0:00:01.6]} 56. Kg4 {[%clk 0:01:37.8]} 56... b2 {[%clk 0:00:01]} 57. Rb5
{[%clk 0:01:35.5]} 57... Ke7 {[%clk 0:00:00.2]} 58. Kf4 {[%clk 0:01:32.1]} 1-0

[Event "Live Chess"]
[Site "Chess.com"]
[Date "2023.05.21"]
[Round "-"]
[White "AyannaTang"]
[Black "YrrriKharkiv"]
[Result "0-1"]
[WhiteElo "212"]
[BlackElo "2065"]
[TimeControl "300"]
[EndTime "1:34:06 PDT"]
[Termination "YrrriKharkiv won by checkmate"]

1. e4 {[%clk 0:04:59.3]} 1... e6 {[%clk 0:04:55.1]} 2. d4 {[%clk 0:04:56.3]}
2... d5 {[%clk 0:04:54.5]} 3. f3 {[%clk 0:04:41.8]} 3... dxe4 {[%clk 0:04:49.3]}
4. Bc4 {[%clk 0:04:36.3]} 4... Nc6 {[%clk 0:04:39.6]} 5. Ne2 {[%clk 0:04:28.7]}
5... exf3 {[%clk 0:04:37.4]} 6. gxf3 {[%clk 0:04:23.7]} 6... Qh4+ {[%clk
0:04:35.7]} 7. Ng3 {[%clk 0:04:19.5]} 7... Bd6 {[%clk 0:04:34.4]} 8. O-O {[%clk
0:04:14.9]} 8... Bxg3 {[%clk 0:04:32.6]} 9. hxg3 {[%clk 0:04:13.7]} 9... Qxg3+
{[%clk 0:04:32.1]} 10. Kh1 {[%clk 0:04:10]} 10... Qh4+ {[%clk 0:04:30.3]} 11.
Kg1 {[%clk 0:04:08.9]} 11... Qxd4+ {[%clk 0:04:28.8]} 12. Qxd4 {[%clk
0:04:07.3]} 12... Nxd4 {[%clk 0:04:28]} 13. f4 {[%clk 0:04:05.3]} 13... Nf6
{[%clk 0:04:24.9]} 14. Nc3 {[%clk 0:04:01.9]} 14... c6 {[%clk 0:04:23.2]} 15.
Be3 {[%clk 0:04:00.1]} 15... Nf5 {[%clk 0:04:22]} 16. Bf2 {[%clk 0:03:51.5]}
16... O-O {[%clk 0:04:19.6]} 17. Bc5 {[%clk 0:03:47.9]} 17... Re8 {[%clk
0:04:15.7]} 18. Ne4 {[%clk 0:03:41.3]} 18... Nxe4 {[%clk 0:04:13.1]} 19. Rfe1
{[%clk 0:03:39.6]} 19... Nxc5 {[%clk 0:04:11.8]} 20. Bxe6 {[%clk 0:03:35.5]}
20... Bxe6 {[%clk 0:04:09.2]} 21. Rad1 {[%clk 0:03:33.2]} 21... Rad8 {[%clk
0:04:07]} 22. Rxd8 {[%clk 0:03:26.1]} 22... Rxd8 {[%clk 0:04:05.9]} 23. Re5
{[%clk 0:03:23.4]} 23... b6 {[%clk 0:04:01.3]} 24. b4 {[%clk 0:03:12.5]} 24...
Rd1+ {[%clk 0:03:57.6]} 25. Kf2 {[%clk 0:03:10.3]} 25... Rd2+ {[%clk 0:03:56.3]}
26. Ke1 {[%clk 0:03:08.6]} 26... Rxc2 {[%clk 0:03:55.6]} 27. a3 {[%clk
0:03:03.7]} 27... Nd3+ {[%clk 0:03:53.9]} 28. Kd1 {[%clk 0:02:56.4]} 28... Nd4
{[%clk 0:03:51.9]} 29. Ra5 {[%clk 0:02:48.6]} 29... bxa5 {[%clk 0:03:48.4]} 30.
bxa5 {[%clk 0:02:47]} 30... Nb3 {[%clk 0:03:46.8]} 31. a6 {[%clk 0:02:45.4]}
31... Rd2# {[%clk 0:03:46]} 0-1

[Event "Live Chess"]
[Site "Chess.com"]
[Date "2023.05.21"]
[Round "-"]
[White "HoarseyHorsey"]
[Black "EPotapov05"]
[Result "1-0"]
[WhiteElo "1473"]
[BlackElo "1389"]
[TimeControl "300"]
[EndTime "1:34:06 PDT"]
[Termination "HoarseyHorsey won by resignation"]

1. d4 {[%clk 0:04:58]} 1... d5 {[%clk 0:04:56.2]} 2. c4 {[%clk 0:04:57]} 2...
dxc4 {[%clk 0:04:54.5]} 3. e4 {[%clk 0:04:56.1]} 3... e5 {[%clk 0:04:52.1]} 4.
Nf3 {[%clk 0:04:54.8]} 4... exd4 {[%clk 0:04:49.1]} 5. Bxc4 {[%clk 0:04:53.6]}
5... Nc6 {[%clk 0:04:46.3]} 6. O-O {[%clk 0:04:51.7]} 6... Bc5 {[%clk
0:04:40.9]} 7. Bg5 {[%clk 0:04:42.4]} 7... Nge7 {[%clk 0:04:30.9]} 8. e5 {[%clk
0:04:31.5]} 8... O-O {[%clk 0:04:25.1]} 9. Nbd2 {[%clk 0:04:20.6]} 9... Bg4
{[%clk 0:04:23.2]} 10. Ne4 {[%clk 0:04:12.5]} 10... Bb6 {[%clk 0:04:14.7]} 11.
h3 {[%clk 0:04:04.6]} 11... Bf5 {[%clk 0:04:11.7]} 12. Ng3 {[%clk 0:03:55.2]}
12... Bg6 {[%clk 0:04:04.7]} 13. e6 {[%clk 0:03:46.3]} 13... fxe6 {[%clk
0:03:58.1]} 14. Bxe6+ {[%clk 0:03:44.5]} 14... Kh8 {[%clk 0:03:52.5]} 15. Re1
{[%clk 0:03:39.3]} 15... Nf5 {[%clk 0:03:43]} 16. Bxd8 {[%clk 0:03:35.9]} 1-0

[Event "Live Chess"]
[Site "Chess.com"]
[Date "2023.05.21"]
[Round "-"]
[White "siddu198"]
[Black "elizaveta_frundina"]
[Result "1-0"]
[WhiteElo "1614"]
[BlackElo "1552"]
[TimeControl "300"]
[EndTime "1:34:07 PDT"]
[Termination "siddu198 won by resignation"]

1. e4 {[%clk 0:04:58.3]} 1... c5 {[%clk 0:04:57.8]} 2. Nf3 {[%clk 0:04:56.6]}
2... d6 {[%clk 0:04:56.8]} 3. Nc3 {[%clk 0:04:55.6]} 3... Nf6 {[%clk 0:04:55.3]}
4. Bb5+ {[%clk 0:04:54.5]} 4... Bd7 {[%clk 0:04:53.7]} 5. Bxd7+ {[%clk
0:04:53.3]} 5... Nbxd7 {[%clk 0:04:53.6]} 6. d3 {[%clk 0:04:52.4]} 6... e6
{[%clk 0:04:52.3]} 7. Be3 {[%clk 0:04:50.9]} 7... Be7 {[%clk 0:04:50.8]} 8. d4
{[%clk 0:04:49.9]} 8... cxd4 {[%clk 0:04:49.9]} 9. Bxd4 {[%clk 0:04:49.2]} 9...
e5 {[%clk 0:04:48.3]} 10. Be3 {[%clk 0:04:48.4]} 10... O-O {[%clk 0:04:47.1]}
11. Qd2 {[%clk 0:04:47.6]} 11... Rc8 {[%clk 0:04:45]} 12. h3 {[%clk 0:04:45.8]}
12... Qb6 {[%clk 0:04:43]} 13. Bxb6 {[%clk 0:04:43.9]} 1-0

[Event "Live Chess"]
[Site "Chess.com"]
[Date "2023.05.21"]
[Round "-"]
[White "Shepherds_Pie"]
[Black "fretle"]
[Result "1-0"]
[WhiteElo "1915"]
[BlackElo "1805"]
[TimeControl "300"]
[EndTime "1:34:09 PDT"]
[Termination "Shepherds_Pie won by resignation"]

1. c4 {[%clk 0:04:54.4]} 1... e5 {[%clk 0:04:57.2]} 2. Nc3 {[%clk 0:04:53]} 2...
Nf6 {[%clk 0:04:56.1]} 3. Nf3 {[%clk 0:04:51.7]} 3... Nc6 {[%clk 0:04:48.2]} 4.
e3 {[%clk 0:04:49.7]} 4... Bb4 {[%clk 0:04:37.3]} 5. Qc2 {[%clk 0:04:46.7]} 5...
O-O {[%clk 0:04:34.4]} 6. Nd5 {[%clk 0:04:44.6]} 6... Bc5 {[%clk 0:04:12.7]} 7.
Ng5 {[%clk 0:04:39]} 7... g6 {[%clk 0:03:13.4]} 8. h4 {[%clk 0:04:24.8]} 8... h5
{[%clk 0:02:56.4]} 9. a3 {[%clk 0:04:16.7]} 9... a5 {[%clk 0:02:52.2]} 10. Bd3
{[%clk 0:04:12.4]} 10... Kg7 {[%clk 0:02:46.3]} 11. b3 {[%clk 0:04:02.3]} 11...
Re8 {[%clk 0:02:42.5]} 12. Bb2 {[%clk 0:03:59.8]} 12... Bd6 {[%clk 0:02:16.6]}
13. Nxf6 {[%clk 0:03:52.5]} 13... Qxf6 {[%clk 0:02:15.1]} 14. Ne4 {[%clk
0:03:48]} 14... Qe7 {[%clk 0:02:10.7]} 15. f4 {[%clk 0:03:45.5]} 15... b6 {[%clk
0:01:53.2]} 16. O-O-O {[%clk 0:03:42.5]} 16... Ba6 {[%clk 0:01:47.2]} 17. Rdf1
{[%clk 0:03:36.7]} 17... f5 {[%clk 0:01:44]} 18. fxe5 {[%clk 0:03:31]} 18...
Bxe5 {[%clk 0:01:42.3]} 19. Ng5 {[%clk 0:03:23.8]} 19... Rab8 {[%clk 0:01:30]}
20. e4 {[%clk 0:03:15.5]} 20... f4 {[%clk 0:01:24.2]} 21. Rxf4 {[%clk
0:03:10.4]} 21... b5 {[%clk 0:01:18]} 22. Rf7+ {[%clk 0:03:07.8]} 22... Qxf7
{[%clk 0:01:16.7]} 23. Nxf7 {[%clk 0:03:06.7]} 23... Kxf7 {[%clk 0:01:16.6]} 24.
Rf1+ {[%clk 0:03:02.5]} 24... Kg8 {[%clk 0:01:14.7]} 25. Bxe5 {[%clk 0:02:55.2]}
25... Nxe5 {[%clk 0:01:14.6]} 26. cxb5 {[%clk 0:02:47.5]} 26... Bxb5 {[%clk
0:01:14.5]} 27. Bxb5 {[%clk 0:02:46.2]} 27... Rxb5 {[%clk 0:01:14.4]} 28. d4
{[%clk 0:02:41]} 28... Ng4 {[%clk 0:01:09.7]} 29. Qc4+ {[%clk 0:02:38.9]} 1-0